bitfinex-derivatives/quotes_BTCF0:USTF0_20250911
["timestamp","ask_amount","ask_price","bid_price","bid_amount"]
[1757595831697,1.27648,113860.0,113850.0,0.2747482]
[1757595831900,1.30016,113860.0,113850.0,0.2747482]
[1757595832398,0.3608,113860.0,113850.0,0.5247482]
[1757595833402,0.3608,113860.0,113850.0,0.5287482]
[1757595833897,0.38448,113870.0,113860.0,0.03486]
[1757595834201,0.3608,113870.0,113860.0,0.49174051]
[1757595834402,1.30028,113880.0,113870.0,0.03486]
[1757595834605,1.30028,113880.0,113870.0,0.24174296]
[1757595834896,1.30028,113880.0,113870.0,0.19773575]
[1757595835199,0.38448,113880.0,113870.0,0.19773575]
[1757595835595,0.3608,113880.0,113870.0,0.19773575]
[1757595835797,0.38448,113880.0,113870.0,0.19773575]
[1757595836300,0.3608,113880.0,113870.0,0.19773575]
[1757595836496,0.3608,113880.0,113870.0,0.44773575]
[1757595836897,0.3608,113880.0,113870.0,0.55789638]
[1757595837298,0.38448,113880.0,113870.0,0.55789638]
[1757595837499,0.39745,113880.0,113870.0,0.11116063]
[1757595837705,0.39745,113880.0,113870.0,0.001]
[1757595837900,0.39745,113880.0,113870.0,0.002]
[1757595838202,0.39745,113880.0,113870.0,0.08084783]
[1757595838402,0.39745,113880.0,113870.0,0.002]
[1757595838603,0.39745,113880.0,113870.0,0.08084783]
[1757595839507,0.39745,113880.0,113870.0,0.10261783]
[1757595840799,0.39745,113880.0,113870.0,0.08084783]
[1757595841009,0.56032575,113880.0,113870.0,0.08084783]
[1757595841604,0.56032575,113880.0,113870.0,0.002]
[1757595842006,0.39745,113880.0,113870.0,0.02377]
[1757595842207,1.30861,113880.0,113870.0,0.02377]
[1757595842602,1.29552,113880.0,113870.0,0.19973575]
[1757595842906,0.38448,113880.0,113870.0,0.19973575]
[1757595843303,0.38448,113880.0,113870.0,0.52858358]
[1757595843508,1.27112,113880.0,113870.0,0.52858358]
[1757595843709,1.2948,113880.0,113870.0,0.44973575]
[1757595844305,1.30777,113880.0,113870.0,0.44973575]
[1757595844498,1.30777,113880.0,113870.0,0.02377]
[1757595844705,1.47064575,113880.0,113870.0,0.08085058]
[1757595844909,1.30777,113880.0,113870.0,0.03686]
[1757595845309,1.2948,113880.0,113870.0,0.11571058]
[1757595845609,1.30777,113880.0,113870.0,0.11571058]
[1757595846011,1.30777,113880.0,113870.0,0.10262058]
[1757595847507,1.30777,113880.0,113870.0,0.08085058]
[1757595847815,1.30777,113880.0,113870.0,0.10262058]
[1757595848612,1.30777,113880.0,113870.0,0.02377]
[1757595848917,1.30777,113880.0,113870.0,0.13393063]
[1757595849503,1.72064575,113880.0,113870.0,0.19103711]
[1757595849716,1.72064575,113880.0,113870.0,0.08087648]
[1757595850111,1.55777,113880.0,113870.0,0.08087648]
[1757595850313,1.72064575,113880.0,113870.0,0.08087648]
[1757595851218,1.72064575,113880.0,113870.0,0.002]
[1757595851918,1.72064575,113880.0,113870.0,0.08087648]
[1757595852825,1.72064575,113880.0,113860.0,0.11016063]
[1757595853122,1.72064575,113880.0,113840.0,0.16968348]
[1757595853123,0.52367575,113870.0,113850.0,0.11016063]
[1757595853319,1.43035575,113860.0,113850.0,0.11016063]
[1757595853723,1.43035575,113860.0,113840.0,0.14502063]
[1757595853921,0.3608,113850.0,113840.0,0.14502063]
[1757595854624,0.5249081,113850.0,113840.0,0.12325063]
[1757595854924,0.3608,113850.0,113840.0,0.12325063]
[1757595855118,0.5249081,113850.0,113840.0,0.12325063]
[1757595855318,0.5249081,113850.0,113840.0,0.14502063]
[1757595855620,0.3649178,113850.0,113840.0,0.14502063]
[1757595856013,0.3618,113850.0,113840.0,0.14902063]
[1757595856521,0.43168152,113850.0,113840.0,0.14902063]
[1757595856723,0.43268152,113850.0,113840.0,0.15302063]
[1757595856920,1.33704152,113850.0,113840.0,0.31712873]
[1757595857520,0.43268152,113850.0,113840.0,0.31712873]
[1757595858022,1.33696152,113850.0,113840.0,0.31712873]
[1757595858622,1.33696152,113850.0,113840.0,0.15302063]
[1757595860522,0.43268152,113850.0,113840.0,0.31712873]
[1757595860822,1.33492152,113850.0,113840.0,0.15302063]
[1757595861218,1.49902962,113850.0,113840.0,0.15302063]
[1757595861516,1.49858962,113850.0,113840.0,0.15302063]
[1757595861927,1.49858962,113850.0,113840.0,0.04286]
[1757595862128,1.49858962,113850.0,113840.0,0.12164431]
[1757595862129,0.59678962,113850.0,113840.0,0.12164431]
[1757595862317,1.49838962,113850.0,113840.0,0.12164431]
[1757595863025,1.49838962,113850.0,113840.0,0.09987431]
[1757595863223,1.33428152,113850.0,113840.0,0.12134431]
[1757595863725,1.33376152,113850.0,113840.0,0.12134431]
[1757595864329,1.33336152,113850.0,113840.0,0.28545241]
[1757595864528,1.33336152,113850.0,113840.0,0.12134431]
[1757595865217,1.49746962,113850.0,113840.0,0.12134431]
[1757595865530,1.33336152,113850.0,113840.0,0.12134431]
[1757595866122,1.33336152,113850.0,113840.0,0.04256]
[1757595866326,1.33336152,113850.0,113840.0,0.12132008]
[1757595867233,0.43268152,113850.0,113840.0,0.12132008]
[1757595867429,1.33484152,113850.0,113840.0,0.28542818]
[1757595868130,1.33484152,113850.0,113840.0,0.12132008]
[1757595868331,0.43268152,113850.0,113840.0,0.28542818]
[1757595868727,1.1572,113850.0,113840.0,0.62324648]
[1757595868927,1.1572,113850.0,113840.0,0.53542818]
[1757595869129,1.1572,113850.0,113840.0,0.53959505]
[1757595869330,1.1572,113850.0,113840.0,0.53542818]
[1757595869834,0.3628,113850.0,113840.0,0.53542818]
[1757595870025,1.2634,113850.0,113840.0,0.53542818]
[1757595870535,1.26244,113850.0,113840.0,0.53542818]
[1757595870737,1.26244,113850.0,113840.0,0.37132008]
[1757595870929,1.4265481,113850.0,113840.0,0.12132008]
[1757595871627,1.4265481,113850.0,113840.0,0.04256]
[1757595871829,1.26244,113850.0,113840.0,0.04256]
[1757595872635,1.26244,113850.0,113840.0,0.2066681]
[1757595872939,1.26244,113850.0,113840.0,0.04256]
[1757595873128,1.26244,113850.0,113840.0,0.2066681]
[1757595873839,1.26244,113850.0,113840.0,0.04256]
[1757595874628,1.4265481,113850.0,113840.0,0.04256]
[1757595875036,1.26244,113850.0,113840.0,0.04256]
[1757595875236,1.4265481,113850.0,113840.0,0.04256]
[1757595876139,1.26244,113850.0,113840.0,0.04256]
[1757595876327,1.43746434,113850.0,113840.0,0.21758434]
[1757595877237,1.43746434,113850.0,113840.0,0.04256]
[1757595877440,1.43746434,113850.0,113840.0,0.21758434]
[1757595877627,1.43746434,113850.0,113840.0,0.02109]
[1757595877830,1.86248868,113850.0,113840.0,0.008]
[1757595878426,1.84078112,113850.0,113840.0,0.008]
[1757595879232,1.84078112,113850.0,113820.0,0.1890357]
[1757595879432,0.88577056,113830.0,113820.0,0.1890357]
[1757595879632,1.77909056,113830.0,113820.0,0.07887507]
[1757595880734,1.78009056,113830.0,113820.0,0.08187507]
[1757595881336,1.15714912,113830.0,113820.0,0.003]
[1757595881534,2.05174912,113830.0,113820.0,0.02108]
[1757595881734,1.88757856,113830.0,113820.0,0.007]
[1757595882040,2.05174912,113830.0,113820.0,0.02108]
[1757595883343,1.80154912,113830.0,113820.0,0.02108]
[1757595883942,0.90814912,113830.0,113820.0,0.02108]
[1757595884239,1.63773856,113830.0,113820.0,0.02108]
[1757595884434,1.80190912,113830.0,113820.0,0.02108]
[1757595884636,1.63773856,113830.0,113820.0,0.02108]
[1757595884836,1.80190912,113830.0,113820.0,0.02108]
[1757595885237,0.90814912,113830.0,113820.0,0.02108]
[1757595885438,0.74397856,113830.0,113820.0,0.04255]
[1757595885729,0.74397856,113830.0,113820.0,0.02108]
[1757595885730,1.63641856,113830.0,113820.0,0.02108]
[1757595885928,1.80058912,113830.0,113820.0,0.02108]
[1757595887741,1.63625856,113830.0,113820.0,0.02108]
[1757595888037,1.80042912,113830.0,113820.0,0.02108]
[1757595888242,1.63625856,113830.0,113820.0,0.007]
[1757595888541,1.80042912,113830.0,113820.0,0.007]
[1757595889045,1.80222912,113830.0,113820.0,0.02108]
[1757595889542,1.80190912,113830.0,113820.0,0.04255]
[1757595889846,0.74397856,113830.0,113820.0,0.04255]
[1757595890042,1.80174912,113830.0,113820.0,0.04255]
[1757595891243,1.80174912,113830.0,113820.0,0.007]
[1757595891742,0.90814912,113830.0,113820.0,0.007]
[1757595892041,0.3628,113830.0,113820.0,0.45596056]
[1757595892446,0.3628,113830.0,113820.0,0.53483563]
[1757595892846,1.2552,113830.0,113820.0,0.69900619]
[1757595893048,0.89392,113830.0,113820.0,1.14763989]
[1757595893344,0.002,113830.0,113820.0,1.09109175]
[1757595893652,0.002,113830.0,113820.0,0.92692119]
[1757595893842,0.3628,113830.0,113820.0,0.56612119]
[1757595894144,0.002,113830.0,113820.0,0.56612119]
[1757595894542,0.002,113830.0,113820.0,0.73029175]
[1757595894847,0.002,113830.0,113820.0,0.92692119]
[1757595895048,0.002,113830.0,113820.0,1.09109175]
[1757595895246,0.002,113830.0,113820.0,0.73029175]
[1757595895441,0.002,113830.0,113820.0,0.56612119]
[1757595897346,0.002,113830.0,113820.0,0.45596056]
[1757595897550,1.25424,113830.0,113820.0,0.20596056]
[1757595897852,1.25424,113830.0,113820.0,0.04179]
[1757595898445,0.3628,113830.0,113820.0,0.6418975]
[1757595898650,1.25372,113830.0,113820.0,0.29179]
[1757595898843,1.25372,113830.0,113820.0,0.6418975]
[1757595899044,0.002,113830.0,113820.0,0.6418975]
[1757595899246,0.002,113830.0,113820.0,0.7297314]
[1757595899446,0.3628,113830.0,113820.0,0.6418975]
[1757595899847,0.3628,113830.0,113820.0,0.75205813]
[1757595900349,0.53785375,113830.0,113820.0,0.04179]
[1757595900653,0.9629075,113830.0,113820.0,0.08580072]
[1757595900857,1.50396,113830.0,113820.0,0.29564447]
[1757595901045,0.78785375,113830.0,113820.0,0.29564447]
[1757595901245,1.25536,113830.0,113820.0,0.47069822]
[1757595901748,1.25536,113830.0,113820.0,0.3918975]
[1757595901948,1.25536,113830.0,113820.0,0.50205813]
[1757595902351,0.53785375,113830.0,113820.0,0.15195063]
[1757595902547,0.53785375,113830.0,113820.0,0.40582838]
[1757595902548,1.43041375,113830.0,113820.0,0.40582838]
[1757595902748,1.42957375,113830.0,113820.0,0.04179]
[1757595903055,1.67957375,113830.0,113820.0,0.09904101]
[1757595903447,1.50452,113830.0,113820.0,0.09904101]
[1757595904061,1.67957375,113830.0,113820.0,0.09904101]
[1757595904256,1.8546275,113830.0,113820.0,0.09904101]
[1757595904550,1.67957375,113830.0,113820.0,0.09904101]
[1757595904755,1.67957375,113830.0,113820.0,0.12061101]
[1757595904756,1.25452,113830.0,113820.0,0.12061101]
[1757595904957,1.42957375,113830.0,113820.0,0.09904101]
[1757595905250,1.25452,113830.0,113820.0,0.12061101]
[1757595905453,1.42957375,113830.0,113820.0,0.29566476]
[1757595905655,1.42957375,113830.0,113820.0,0.21684375]
[1757595905848,1.42957375,113830.0,113820.0,0.04179]
[1757595906047,1.42957375,113830.0,113820.0,0.21684375]
[1757595906252,1.42957375,113830.0,113820.0,0.29566476]
[1757595906449,1.42957375,113830.0,113820.0,0.12061101]
[1757595906756,1.42957375,113830.0,113820.0,0.29566476]
[1757595907058,1.256,113830.0,113820.0,0.12061101]
[1757595907264,1.43105375,113830.0,113820.0,0.29566476]
[1757595907461,1.43029375,113830.0,113820.0,0.32700438]
[1757595907755,1.43029375,113830.0,113820.0,0.13038063]
[1757595907959,1.43029375,113830.0,113820.0,0.02022]
[1757595908264,1.43029375,113830.0,113820.0,0.09911247]
[1757595909352,1.25524,113830.0,113820.0,0.02022]
[1757595909553,1.43029375,113830.0,113820.0,0.09911438]
[1757595909861,1.43029375,113830.0,113820.0,0.08589438]
[1757595909862,1.8553475,113830.0,113820.0,0.08589438]
[1757595910163,1.8553475,113830.0,113820.0,0.09911438]
[1757595910358,1.50524,113830.0,113820.0,0.12068438]
[1757595910861,1.68029375,113830.0,113820.0,0.12068438]
[1757595911054,1.68029375,113830.0,113820.0,0.04179]
[1757595911254,1.68029375,113830.0,113820.0,0.1206833]
[1757595912362,1.68029375,113830.0,113820.0,0.0991133]
[1757595912560,1.50524,113830.0,113820.0,0.0991133]
[1757595912864,1.68029375,113830.0,113820.0,0.0991133]
[1757595913062,1.50524,113830.0,113820.0,0.1206833]
[1757595913262,1.68029375,113830.0,113820.0,0.1206833]
[1757595913468,1.50524,113830.0,113820.0,0.1206833]
[1757595913661,1.68029375,113830.0,113820.0,0.1206833]
[1757595913966,1.25576,113830.0,113820.0,0.7207908]
[1757595914164,1.25568,113830.0,113820.0,0.29179]
[1757595914465,1.25568,113830.0,113820.0,0.63535171]
[1757595914666,1.25568,113830.0,113820.0,0.40195063]
[1757595914866,1.25568,113830.0,113820.0,0.63535171]
[1757595915268,1.25568,113830.0,113820.0,0.40195063]
[1757595915670,1.25568,113830.0,113820.0,0.51865117]
[1757595916468,1.62238054,113830.0,113820.0,0.13038063]
[1757595916862,1.62238054,113830.0,113820.0,0.02022]
[1757595917261,1.62238054,113830.0,113820.0,0.13038063]
[1757595917464,1.50568,113830.0,113820.0,0.15195063]
[1757595917656,1.62238054,113830.0,113820.0,0.15195063]
[1757595918265,1.62238054,113830.0,113820.0,0.13038063]
[1757595918461,1.50568,113830.0,113820.0,0.13038063]
[1757595918667,1.62238054,113830.0,113820.0,0.13038063]
[1757595918972,1.50568,113830.0,113820.0,0.15195063]
[1757595919173,0.3628,113830.0,113820.0,0.26865117]
[1757595919374,1.2576,113830.0,113820.0,0.26865117]
[1757595919564,0.3628,113830.0,113820.0,0.26865117]
[1757595919764,1.25724,113830.0,113820.0,0.26865117]
[1757595920972,1.25724,113830.0,113820.0,0.51865117]
[1757595920973,0.3628,113830.0,113820.0,0.51865117]
[1757595921274,1.257,113830.0,113820.0,0.63535171]
[1757595921573,1.257,113830.0,113820.0,0.51865117]
[1757595921772,1.257,113830.0,113820.0,0.63535171]
[1757595922371,1.257,113830.0,113820.0,0.52519108]
[1757595922570,1.257,113830.0,113820.0,0.51898767]
[1757595922771,1.25592,113830.0,113820.0,0.51898767]
[1757595922961,1.25592,113830.0,113820.0,0.40849054]
[1757595923368,0.002,113830.0,113820.0,1.69052562]
[1757595923873,1.253,113850.0,113840.0,0.03645]
[1757595924071,1.253,113850.0,113840.0,0.26362775]
[1757595925270,1.254,113850.0,113840.0,0.14692721]
[1757595925574,1.254,113850.0,113840.0,0.26362775]
[1757595926273,1.254,113850.0,113840.0,0.26462775]
[1757595927167,1.254,113850.0,113840.0,0.14792721]
[1757595927368,1.254,113850.0,113840.0,0.26462775]
[1757595927773,1.254,113850.0,113840.0,0.23574621]
[1757595927972,1.254,113850.0,113840.0,0.35244675]
[1757595928169,0.3618,113850.0,113840.0,0.71914729]
[1757595928376,0.001,113850.0,113840.0,1.08617062]
[1757595928577,1.04872,113870.0,113860.0,0.1242535]
[1757595928779,1.04872,113870.0,113860.0,0.35765458]
[1757595929272,0.3608,113870.0,113860.0,0.4364041]
[1757595929872,0.3618,113870.0,113860.0,0.6874041]
[1757595930079,0.3618,113870.0,113860.0,0.60865458]
[1757595930376,0.3618,113870.0,113860.0,0.53812275]
[1757595930970,0.3618,113870.0,113860.0,0.3752535]
[1757595931171,0.3618,113870.0,113860.0,0.39756486]
[1757595931572,0.3638,113870.0,113860.0,0.64823761]
[1757595931777,0.3638,113870.0,113860.0,0.56043411]
[1757595931977,1.2532,113870.0,113860.0,0.14756486]
[1757595932180,1.2512,113870.0,113860.0,0.2262186]
[1757595932379,1.2512,113870.0,113860.0,0.11810374]
[1757595932780,1.2512,113870.0,113860.0,0.28097299]
[1757595932973,0.3618,113870.0,113860.0,0.28097299]
[1757595933176,0.3618,113870.0,113860.0,0.36877649]
[1757595934089,0.3618,113870.0,113860.0,0.54012275]
[1757595934289,0.3618,113870.0,113860.0,0.61869665]
[1757595934478,0.3618,113870.0,113860.0,0.65023761]
[1757595934673,0.001,113870.0,113860.0,1.01103761]
[1757595934979,0.001,113870.0,113860.0,0.90092275]
[1757595935188,0.001,113870.0,113860.0,0.3772535]
[1757595935378,0.001,113870.0,113860.0,0.54012275]
[1757595935871,0.001,113870.0,113860.0,0.60900086]
[1757595938081,0.001,113870.0,113860.0,0.52119736]
[1757595939383,0.001,113870.0,113860.0,0.43757417]
[1757595939786,0.001,113870.0,113860.0,0.19613161]
[1757595940084,0.001,113870.0,113860.0,0.35900086]
[1757595942988,0.001,113870.0,113860.0,1.48980086]
[1757595943179,0.001,113870.0,113860.0,1.56837417]
[1757595943481,0.3608,113880.0,113870.0,0.1242458]
[1757595943688,0.3608,113880.0,113870.0,0.36564095]
[1757595943987,0.3608,113890.0,113880.0,0.1010984]
[1757595944184,0.38183,113900.0,113890.0,0.1242307]
[1757595944381,0.38183,113900.0,113890.0,0.28709995]
[1757595944582,0.38183,113900.0,113890.0,0.03645]
[1757595944782,0.38183,113900.0,113890.0,0.19931925]
[1757595946082,0.38383,113900.0,113890.0,0.20031925]
[1757595947389,0.64888,113900.0,113890.0,0.002]
[1757595948187,0.64888,113900.0,113890.0,0.02514]
[1757595949084,0.64888,113900.0,113890.0,0.03845]
[1757595949286,0.63683,113900.0,113890.0,0.20131925]
[1757595950378,0.63683,113900.0,113890.0,0.15501192]
[1757595950578,0.64888,113900.0,113890.0,0.15501192]
[1757595951093,0.38683,113900.0,113890.0,0.03845]
[1757595951286,0.02603,113900.0,113890.0,0.15501192]
[1757595951687,0.38683,113900.0,113890.0,0.15501192]
[1757595951995,0.40029,113900.0,113890.0,0.03845]
[1757595952198,0.40029,113900.0,113890.0,0.15501192]
[1757595952691,0.40029,113900.0,113890.0,0.03845]
[1757595952879,0.40029,113900.0,113890.0,0.15501192]
[1757595953684,0.40029,113900.0,113890.0,0.03845]
[1757595953890,0.40029,113900.0,113890.0,0.15501192]
[1757595954495,0.40029,113900.0,113890.0,0.03845]
[1757595954695,0.40029,113900.0,113890.0,0.15501192]
[1757595954995,0.38683,113900.0,113890.0,0.15501192]
[1757595955298,0.38683,113900.0,113890.0,0.03845]
[1757595955495,0.38683,113900.0,113890.0,0.15501192]
[1757595956496,0.38683,113900.0,113890.0,0.03845]
[1757595956690,0.38683,113900.0,113890.0,0.15501192]
[1757595958199,0.3658,113900.0,113890.0,0.43788044]
[1757595958397,0.3658,113900.0,113890.0,0.45579718]
[1757595958599,0.3658,113900.0,113890.0,0.33923526]
[1757595958798,0.3658,113900.0,113890.0,0.25145456]
[1757595959001,0.38839,113900.0,113890.0,0.25145456]
[1757595959498,0.38739,113900.0,113890.0,0.17192866]
[1757595959701,0.38739,113900.0,113890.0,0.17092866]
[1757595959702,0.38639,113900.0,113890.0,0.17092866]
[1757595960702,0.38639,113900.0,113890.0,0.25870936]
[1757595960897,0.02559,113900.0,113890.0,0.25870936]
[1757595961096,0.003,113900.0,113890.0,0.37527128]
[1757595961292,0.003,113900.0,113890.0,0.73067334]
[1757595961488,0.003,113900.0,113890.0,1.24607128]
[1757595962403,0.003,113900.0,113890.0,1.49607128]
[1757595962997,0.001,113900.0,113890.0,1.49807128]
[1757595963202,0.38339,113920.0,113910.0,0.03495]
[1757595963395,0.38339,113920.0,113910.0,0.15151192]
[1757595964596,0.01205,113910.0,113900.0,0.07879611]
[1757595964803,1.40048192,113910.0,113900.0,0.07879611]
[1757595965006,1.40048192,113910.0,113890.0,0.23058477]
[1757595965212,0.38339,113900.0,113890.0,0.25179477]
[1757595965797,0.38339,113900.0,113890.0,0.24979477]
[1757595966006,0.38339,113900.0,113890.0,0.13323285]
[1757595966399,0.38339,113900.0,113890.0,0.24979477]
[1757595966599,0.38339,113900.0,113890.0,0.13123285]
[1757595966907,0.88097384,113900.0,113890.0,0.01991674]
[1757595967107,0.76441192,113900.0,113890.0,0.01991674]
[1757595967512,0.64785,113900.0,113890.0,0.01991674]
[1757595967805,0.76441192,113900.0,113890.0,0.01991674]
[1757595968197,0.76441192,113900.0,113890.0,0.004]
[1757595968594,0.88097384,113900.0,113890.0,0.004]
[1757595968804,0.00946,113890.0,113870.0,0.18891097]
[1757595969008,1.40177192,113880.0,113860.0,0.23170838]
[1757595969207,0.02259,113870.0,113860.0,0.17412227]
[1757595969408,1.11843,113880.0,113870.0,0.03495]
[1757595969708,0.38339,113880.0,113870.0,0.15151192]
[1757595970409,0.38339,113880.0,113870.0,0.15451192]
[1757595970597,0.02259,113880.0,113870.0,0.15451192]
[1757595970798,0.001,113880.0,113870.0,0.68770554]
[1757595970995,0.001,113880.0,113870.0,1.04850554]
[1757595971194,0.001,113880.0,113870.0,0.7365461]
[1757595971396,0.001,113880.0,113870.0,0.40451192]
[1757595971601,0.38439,113880.0,113870.0,0.51462678]
[1757595971801,0.38439,113880.0,113870.0,0.29295]
[1757595972002,0.38439,113880.0,113870.0,0.40951192]
[1757595972203,0.38439,113880.0,113870.0,0.51962678]
[1757595972404,0.38439,113880.0,113870.0,0.56593245]
[1757595972608,0.3618,113880.0,113870.0,0.65372855]
[1757595972811,0.3628,113880.0,113870.0,0.65372855]
[1757595973002,0.002,113880.0,113870.0,1.45452855]
[1757595973506,0.002,113880.0,113870.0,1.29166096]
[1757595973706,0.002,113880.0,113870.0,1.45452855]
[1757595974611,0.002,113880.0,113870.0,1.34441369]
[1757595975110,0.002,113880.0,113870.0,1.45479196]
[1757595975305,0.3608,113900.0,113890.0,0.1227307]
[1757595975498,0.3608,113900.0,113890.0,0.11379035]
[1757595975499,0.38339,113900.0,113890.0,0.11379035]
[1757595975702,0.38339,113900.0,113890.0,0.38703621]
[1757595975909,0.38339,113900.0,113890.0,0.30819586]
[1757595976308,0.38339,113900.0,113890.0,0.39701428]
[1757595976500,0.38339,113900.0,113890.0,0.88701428]
[1757595976700,0.02359,113900.0,113890.0,0.72410897]
[1757595976911,0.001,113900.0,113890.0,0.88801428]
[1757595977112,0.001,113900.0,113890.0,1.24881428]
[1757595977410,0.001,113900.0,113890.0,2.55091959]
[1757595977604,0.001,113900.0,113890.0,2.55291959]
[1757595977807,0.001,113900.0,113890.0,2.27863601]
[1757595979507,0.001,113900.0,113890.0,2.27859601]
[1757595980011,0.001,113900.0,113890.0,2.43518949]
[1757595980311,0.001,113900.0,113890.0,2.43510949]
[1757595981411,0.38257,113920.0,113910.0,0.03669]
[1757595981612,0.38257,113920.0,113910.0,0.11546945]
[1757595981809,0.38257,113920.0,113910.0,0.27937476]
[1757595982011,0.81019531,113920.0,113910.0,0.07877945]
[1757595982413,0.03539,113900.0,113890.0,0.20991754]
[1757595982605,0.92089531,113900.0,113890.0,0.13113809]
[1757595982804,0.75699,113900.0,113890.0,0.13113809]
[1757595983108,0.75699,113900.0,113890.0,0.3160734]
[1757595983411,0.75699,113900.0,113890.0,0.31088655]
[1757595983613,0.75699,113900.0,113890.0,0.11029124]
[1757595984118,0.75699,113900.0,113890.0,0.31088655]
[1757595984312,0.74337,113900.0,113890.0,0.20059531]
[1757595984519,0.75799,113900.0,113890.0,0.002]
[1757595985018,0.75799,113900.0,113890.0,0.004]
[1757595986417,0.75799,113900.0,113890.0,0.13732124]
[1757595986620,0.75799,113900.0,113890.0,0.30122655]
[1757595986809,0.74437,113900.0,113890.0,0.31488655]
[1757595987317,0.75799,113900.0,113890.0,0.31488655]
[1757595988116,0.75799,113900.0,113890.0,0.15098124]
[1757595988321,0.75799,113900.0,113890.0,0.11429124]
[1757595988619,1.17189531,113900.0,113890.0,0.11429124]
[1757595988813,1.17189531,113900.0,113890.0,0.12307124]
[1757595989519,1.17189531,113900.0,113890.0,0.01278]
[1757595989720,1.00799,113900.0,113890.0,0.01278]
[1757595989920,1.17189531,113900.0,113890.0,0.09157055]
[1757595992810,1.17189531,113900.0,113890.0,0.01278]
[1757595993017,1.00799,113900.0,113890.0,0.01278]
[1757595993313,1.17189531,113900.0,113890.0,0.01278]
[1757595993912,1.00799,113900.0,113890.0,0.01278]
[1757595994116,1.00799,113900.0,113890.0,0.21337531]
[1757595994314,1.89551,113900.0,113890.0,0.21337531]
[1757595994620,1.63189,113900.0,113890.0,0.32366655]
[1757595996312,1.64551,113900.0,113890.0,0.32366655]
[1757595996512,1.64551,113900.0,113890.0,0.31000655]
[1757595997622,1.64551,113900.0,113890.0,0.14610124]
[1757595997918,1.80941531,113900.0,113890.0,0.12307124]
[1757595998816,2.05941531,113900.0,113890.0,0.12307124]
[1757595999015,2.05941531,113900.0,113890.0,0.20188368]
[1757595999216,2.05941531,113900.0,113890.0,0.09159244]
[1757595999417,1.80941531,113900.0,113890.0,0.09159244]
[1757596000823,1.64551,113900.0,113890.0,0.09159244]
[1757596001017,1.88033337,113900.0,113890.0,0.09159244]
[1757596002526,1.71642806,113900.0,113890.0,0.09159244]
[1757596002731,1.88033337,113900.0,113890.0,0.09159244]
[1757596003721,1.71642806,113900.0,113890.0,0.09159244]
[1757596003929,1.88033337,113900.0,113890.0,0.09159244]
[1757596006427,1.71642806,113900.0,113890.0,0.09159244]
[1757596006619,1.88033337,113900.0,113890.0,0.09159244]
[1757596007822,1.88033337,113900.0,113890.0,0.01278]
[1757596008726,1.87965337,113900.0,113890.0,0.01278]
[1757596009032,1.87957337,113900.0,113890.0,0.01278]
[1757596009528,0.99281337,113900.0,113890.0,0.01278]
[1757596009728,1.87957337,113900.0,113890.0,0.01278]
[1757596010427,1.87957337,113900.0,113890.0,0.09159244]
[1757596011626,1.87953337,113900.0,113890.0,0.09159244]
[1757596013427,1.71562806,113900.0,113890.0,0.09159244]
[1757596013632,1.87953337,113900.0,113890.0,0.01278]
[1757596014332,1.71562806,113900.0,113890.0,0.01278]
[1757596014531,1.87953337,113900.0,113890.0,0.01278]
[1757596015033,1.87953337,113900.0,113890.0,0.09159244]
[1757596015725,1.87953337,113900.0,113890.0,0.01278]
[1757596016429,2.06547712,113900.0,113890.0,0.01278]
[1757596016831,1.17875712,113900.0,113890.0,0.01278]
[1757596017026,2.06515712,113900.0,113890.0,0.01278]
[1757596017635,1.71530806,113900.0,113890.0,0.18770453]
[1757596017935,2.06503712,113900.0,113890.0,0.01278]
[1757596018937,2.06503712,113900.0,113890.0,0.09159244]
[1757596020538,2.06503712,113900.0,113890.0,0.01278]
[1757596021039,1.00383259,113900.0,113890.0,0.21064453]
[1757596021233,1.88991259,113900.0,113890.0,0.03572]
[1757596021434,2.06483712,113900.0,113890.0,0.01278]
[1757596021638,2.23976165,113900.0,113890.0,0.01278]
[1757596021841,2.06483712,113900.0,113890.0,0.01278]
[1757596022138,2.06467712,113900.0,113890.0,0.01278]
[1757596022543,1.71482806,113900.0,113890.0,0.01278]
[1757596022737,1.71482806,113900.0,113890.0,0.21064453]
[1757596022738,2.06467712,113900.0,113890.0,0.21064453]
[1757596022938,1.88975259,113900.0,113890.0,0.21064453]
[1757596023238,2.06467712,113900.0,113890.0,0.20664453]
[1757596023536,2.06567712,113900.0,113890.0,0.03172]
[1757596023738,1.17975712,113900.0,113890.0,0.1106793]
[1757596023941,1.80613453,113900.0,113890.0,0.54838383]
[1757596024139,1.63121,113900.0,113890.0,0.54838383]
[1757596024442,1.63121,113900.0,113890.0,0.45843796]
[1757596024642,1.63121,113900.0,113890.0,0.53739726]
[1757596025043,0.74537,113900.0,113890.0,0.45843796]
[1757596025248,0.74537,113900.0,113890.0,0.54621846]
[1757596025453,0.70932975,113900.0,113890.0,0.45843796]
[1757596025755,0.73083975,113900.0,113890.0,0.45943796]
[1757596025953,0.73083975,113900.0,113890.0,0.61603144]
[1757596026545,0.37003975,113900.0,113890.0,0.61703144]
[1757596026741,0.36903975,113900.0,113890.0,0.61703144]
[1757596027045,0.34752975,113900.0,113890.0,0.69696549]
[1757596027245,0.37003975,113900.0,113890.0,0.53302753]
[1757596027549,0.34752975,113900.0,113890.0,0.5584258]
[1757596027752,0.34752975,113900.0,113890.0,0.47949175]
[1757596028052,0.34752975,113900.0,113890.0,0.48049175]
[1757596028239,0.34752975,113900.0,113890.0,1.29486573]
[1757596028445,0.001,113900.0,113890.0,1.65566573]
[1757596028746,0.001,113900.0,113890.0,1.56788523]
[1757596029151,0.001,113900.0,113890.0,1.41129175]
[1757596029351,0.02351,113900.0,113890.0,1.05129175]
[1757596030153,0.02351,113900.0,113890.0,0.74770133]
[1757596030354,0.02351,113900.0,113890.0,0.53770133]
[1757596030945,0.02351,113900.0,113890.0,0.70163929]
[1757596031145,0.02351,113900.0,113890.0,0.17690133]
[1757596031352,0.02351,113900.0,113890.0,0.34083929]
[1757596031750,0.03713,113900.0,113890.0,0.32805929]
[1757596032049,0.03713,113900.0,113890.0,0.40686192]
[1757596032248,0.02351,113900.0,113890.0,0.23049175]
[1757596033054,0.001,113900.0,113890.0,0.23049175]
[1757596033256,0.02351,113900.0,113890.0,0.23049175]
[1757596033752,0.38431,113900.0,113890.0,0.23049175]
[1757596033953,0.02351,113900.0,113890.0,0.23049175]